bitfinex/quotes_ETHUSD_20220120
["timestamp","ask_amount","ask_price","bid_price","bid_amount"]
[1642721194354,0.00284212,3023.2,3023.0,1.6538216]
[1642721194557,0.00227369,3023.1,3023.0,1.9538216]
[1642721194957,0.00227369,3023.1,3023.0,20.9038216]
[1642721195956,1.47864479,3024.0,3023.3,0.8268601]
[1642721196159,1.74117287,3024.6,3023.4,18.95]
[1642721196358,1.74117287,3024.6,3023.6,18.95]
[1642721196359,5.17119998,3024.6,3023.6,18.95]
[1642721196556,0.00227369,3024.5,3023.6,18.95]
[1642721196816,0.00227369,3024.5,3023.7,0.0022737]
[1642721197006,0.00170527,3024.4,3023.7,0.0022737]
[1642721197204,0.78071525,3025.0,3023.8,22.1]
[1642721197405,0.78071525,3025.0,3023.8,22.4]
[1642721197604,1.10672257,3024.1,3023.9,0.82955562]
[1642721197809,1.10672257,3024.1,3023.9,0.62961191]
[1642721198005,1.10672257,3024.1,3024.0,0.0022737]
[1642721198209,1.10061922,3024.1,3024.0,0.0022737]
[1642721198404,0.00227369,3024.8,3024.0,0.0022737]
[1642721198806,0.00170527,3024.7,3024.0,0.3022737]
[1642721199206,0.00113684,3024.6,3024.1,0.00170527]
[1642721199411,1.56326914,3024.2,3024.1,0.00170527]
[1642721200207,0.00341054,3025.0,3024.1,2.00170527]
[1642721200413,0.00341054,3025.0,3024.3,0.8267003]
[1642721200648,5.99577,3025.1,3024.4,0.09697478]
[1642721200649,0.00284211,3024.9,3024.4,0.09697478]
[1642721201049,5.169,3025.1,3024.3,0.3]
[1642721201050,0.00341054,3025.0,3024.3,0.3]
[1642721201248,0.00341054,3025.0,3024.2,0.30113685]
[1642721201451,0.00284211,3024.9,3024.4,1.6531982]
[1642721201652,0.00284211,3024.9,3024.5,0.0813458]
[1642721201850,0.00682108,3025.6,3024.4,1.9531982]
[1642721202252,0.00625266,3025.5,3024.4,1.9531982]
[1642721202652,1.13128393,3024.9,3024.4,1.9531982]
[1642721202858,1.13128393,3024.9,3024.5,1.6650178]
[1642721203061,1.13128393,3024.9,3024.6,0.3]
[1642721203256,1.13128393,3024.9,3024.6,2.7791507]
[1642721203455,0.00682108,3025.6,3024.7,19.05440721]
[1642721203856,1.53182,3025.9,3024.7,18.95]
[1642721203857,1.39490621,3024.9,3024.7,18.95]
[1642721204055,1.52055815,3024.9,3024.8,3.15]
[1642721204311,0.00795793,3025.8,3024.9,1.35]
[1642721204513,1.53182,3025.9,3025.0,19.04600839]
[1642721204708,0.00795793,3025.8,3025.0,19.34600839]
[1642721204908,0.00795793,3025.8,3025.0,19.47820839]
[1642721205108,0.0073895,3025.7,3025.1,19.7763156]
[1642721205309,1.53512985,3025.6,3025.2,1.6526411]
[1642721205509,1.53512985,3025.6,3025.3,0.82626]
[1642721205510,1.54195093,3025.6,3025.3,0.82626]
[1642721205711,0.79138251,3025.6,3025.5,3.15]
[1642721205908,0.79138251,3025.6,3025.5,22.1]
[1642721206206,0.79138251,3025.6,3025.5,22.4]
[1642721206411,0.381,3027.5,3025.7,3.15]
[1642721206612,0.381,3027.5,3026.2,0.1015981]
[1642721206815,5.169,3027.9,3026.3,0.01200452]
[1642721206816,1.31401413,3027.3,3026.3,0.01200452]
[1642721207011,5.169,3027.9,3026.3,0.01200452]
[1642721207209,0.01307374,3027.8,3026.3,0.09299294]
[1642721207410,1.12024378,3027.7,3026.3,0.09299294]
[1642721207610,1.08274909,3027.7,3026.3,0.01200452]
[1642721207811,0.01193689,3027.6,3026.3,0.01200452]
[1642721208060,1.10053945,3027.1,3025.8,0.18510708]
[1642721208363,0.00852635,3027.0,3025.8,0.18510708]
[1642721208562,0.00852635,3027.0,3025.8,0.1321]
[1642721208757,0.01267825,3026.6,3025.5,0.01268874]
[1642721208960,0.01267825,3026.6,3025.7,0.8263325]
[1642721208961,1.17385216,3026.3,3025.7,0.8263325]
[1642721209161,1.55485216,3026.3,3025.5,1.66526414]
[1642721209360,0.00397896,3026.2,3025.5,1.66526414]
[1642721209760,0.00341054,3026.1,3025.5,1.66526414]
[1642721209963,1.27253546,3025.8,3025.5,1.66526414]
[1642721210162,0.00284211,3026.0,3025.7,0.8262872]
[1642721210368,0.381,3026.8,3025.9,1.6521221]
[1642721210565,0.381,3026.8,3026.0,0.1276258]
[1642721210765,0.00397896,3026.2,3026.0,19.2097258]
[1642721210969,0.381,3027.6,3026.0,19.2097258]
[1642721210970,2.0,3027.5,3026.2,0.09550531]
[1642721211266,1.47029837,3026.8,3026.1,22.1]
[1642721211467,0.00220124,3027.4,3026.6,18.95]
[1642721211665,0.00284212,3026.7,3026.6,18.95]
[1642721211910,0.00220124,3027.8,3026.6,18.95]
[1642721211911,0.00625266,3027.3,3026.6,19.25]
[1642721212110,0.00284212,3026.7,3026.6,19.25]
[1642721212310,0.00220124,3027.8,3026.6,19.25]
[1642721212311,0.00568423,3027.2,3026.6,19.25]
[1642721212610,0.00511581,3027.1,3026.6,21.7275618]
[1642721212812,0.00511581,3027.1,3026.8,0.82585]
[1642721213013,0.00454739,3027.0,3026.6,20.9017142]
[1642721213212,0.00454739,3027.0,3026.7,0.3]
[1642721213412,0.00397896,3026.9,3026.7,0.3]
[1642721213813,0.00341054,3026.8,3026.7,0.3]
[1642721214215,0.00852635,3026.8,3026.7,0.3]
[1642721214814,2.635e-05,3026.8,3026.7,0.3]
[1642721215016,2.635e-05,3026.8,3026.7,3.45]
[1642721215216,2.635e-05,3026.8,3026.7,22.47583683]
[1642721215415,16.922643,3028.6,3026.9,0.1492853]
[1642721215416,0.00220124,3028.5,3026.9,0.1492853]
[1642721215652,0.00220124,3028.5,3027.3,0.11185742]
[1642721215857,0.00674863,3028.5,3027.2,1.8010206]
[1642721216055,1.38927965,3028.2,3027.5,0.825687]
[1642721216260,1.33543056,3028.1,3027.5,0.825687]
[1642721216455,1.33770426,3028.1,3027.5,0.65726099]
[1642721216655,0.00170527,3028.0,3027.4,1.6513739]
[1642721216858,0.00170527,3028.0,3027.3,0.00227369]
[1642721217058,0.8590162,3027.3,3025.8,0.1321]
[1642721217256,1.2039391,3026.8,3026.5,0.00454739]
[1642721217459,0.381,3026.7,3026.5,0.00454739]
[1642721217659,1.35480176,3026.0,3025.9,0.00795793]
[1642721217958,1.2197809,3026.6,3025.9,0.00795793]
[1642721217959,0.381,3026.2,3025.9,0.00795793]
[1642721218155,0.00220124,3026.6,3025.9,0.00795793]
[1642721218156,0.381,3026.6,3025.9,0.00795793]
[1642721218356,0.00220124,3026.7,3025.9,0.00795793]
[1642721218557,1.2039391,3026.8,3025.8,0.00852635]
[1642721218765,0.00220124,3026.7,3025.8,0.00852635]
[1642721218960,1.2039391,3026.8,3026.0,0.8261645]
[1642721219407,0.00220124,3026.9,3026.2,0.09708078]
[1642721219613,0.381,3027.0,3026.1,21.29524902]
[1642721219810,0.381,3027.0,3026.3,0.00568424]
[1642721220011,0.00220124,3027.2,3026.3,0.8260095]
[1642721220213,0.00220124,3027.6,3026.3,19.7760095]
[1642721220410,0.00220124,3027.6,3026.4,0.30511581]
[1642721220610,1.4565657,3027.6,3026.5,18.95]
[1642721221012,1.4565657,3027.6,3026.6,0.00397897]
[1642721221212,0.00220124,3027.6,3026.6,0.00397897]
[1642721221418,0.00397896,3028.0,3026.7,18.95]
[1642721221419,0.00220124,3027.7,3026.7,18.95]
[1642721221611,0.00397896,3028.0,3026.7,18.95]
[1642721221612,0.00397896,3028.0,3026.8,1.6516929]
[1642721221812,0.00397896,3028.0,3026.8,1.65453502]
[1642721222015,0.00397896,3028.0,3026.9,0.3022737]
[1642721222215,1.09348302,3027.6,3026.9,0.3022737]
[1642721222417,1.09348302,3027.6,3027.0,0.00170527]
[1642721222617,1.0559442,3027.2,3027.0,0.00170527]
[1642721222814,1.0559442,3027.2,3026.8,0.00284212]
[1642721223058,0.381,3027.1,3026.8,0.00284212]
[1642721223261,0.381,3027.1,3025.7,0.03]
[1642721223262,3.15,3026.8,3025.7,0.03]
[1642721223462,0.381,3026.7,3025.7,0.03]
[1642721223659,0.381,3026.7,3025.8,0.00568423]
[1642721223861,0.381,3026.7,3025.7,0.00568423]
[1642721223862,0.01276651,3026.2,3025.7,0.00568423]
[1642721224065,1.0028826,3025.8,3025.7,0.00568423]
[1642721224260,0.38270527,3026.1,3025.7,0.00568423]
[1642721224460,1.46282873,3026.0,3025.7,0.00568423]
[1642721224660,0.381,3025.9,3025.7,0.00568423]
[1642721225460,2.31267326,3025.8,3025.7,8.423e-05]
[1642721225663,2.69367326,3025.8,3025.7,8.423e-05]
[1642721225960,2.69367326,3025.8,3024.9,0.08067585]
[1642721225961,0.82676,3025.7,3024.9,0.08067585]
[1642721226161,2.9559354,3025.6,3024.9,0.08067585]
[1642721226361,2.03464,3025.6,3025.0,0.00454739]
[1642721226665,1.45561008,3025.5,3025.0,0.00454739]
[1642721226909,2.03464,3025.6,3023.8,1.6534157]
[1642721226910,3.16220127,3025.3,3023.8,1.6534157]
[1642721227114,3.16220127,3025.3,3022.7,3.4389816]
[1642721227115,0.381,3025.2,3022.7,3.4389816]
[1642721227312,0.01284418,3024.6,3023.9,0.00625266]
[1642721227513,0.381,3024.5,3023.9,0.00625266]
[1642721227711,0.381,3024.5,3022.9,0.01193689]
[1642721227910,1.2208941,3024.1,3023.4,1.16502148]
[1642721228126,0.381,3024.3,3023.4,1.16502148]
[1642721228316,0.00220124,3024.4,3023.5,0.14072635]
[1642721228610,0.381,3024.7,3023.6,0.00795793]
[1642721228911,0.00220124,3024.6,3023.6,0.00795793]
[1642721229111,1.26691373,3024.6,3024.1,0.89272665]
[1642721229317,2.03471,3025.0,3024.1,0.89272665]
[1642721229318,0.381,3025.0,3024.1,0.89272665]
[1642721229514,0.00220124,3024.8,3024.2,0.00454739]
[1642721229713,0.00333809,3025.2,3024.2,0.00454739]
[1642721229910,0.00113685,3025.2,3024.2,0.60454739]
[1642721230111,0.00113685,3025.2,3024.3,0.09129769]
[1642721230313,0.00113685,3025.2,3024.3,0.00397897]
[1642721230545,0.00113685,3025.2,3024.4,0.00341054]
[1642721230748,0.00113685,3025.2,3024.3,0.83065727]
[1642721230949,0.00113685,3025.2,3024.3,0.96285727]
[1642721231148,0.00113685,3025.2,3024.4,0.00341054]
[1642721231748,0.00113685,3025.2,3024.5,0.8266234]
[1642721231955,0.00397896,3025.1,3024.5,0.8266234]
[1642721232351,0.00341054,3025.0,3024.5,0.8266234]
[1642721232548,0.00341054,3025.0,3024.2,0.9]
[1642721232749,0.00284211,3024.9,3024.2,0.9]
[1642721233153,0.00227369,3024.8,3024.2,0.9]
[1642721233570,0.00170527,3024.7,3024.3,0.08023107]
[1642721233753,0.00170527,3024.7,3024.2,0.9]
[1642721233953,0.00113684,3024.6,3024.3,0.8266845]
[1642721234158,0.00113684,3024.6,3024.2,0.6]
[1642721234409,0.381,3024.7,3024.2,0.6]
[1642721234616,3.01873372,3024.6,3024.2,0.6]
[1642721234809,0.381,3024.5,3024.2,0.6]
[1642721235008,1.20792,3024.5,3024.2,0.59911401]
[1642721235208,1.26244899,3024.4,3024.2,0.59911401]
[1642721235409,2.081,3024.3,3024.2,0.59911401]
[1642721235608,0.381,3024.3,3024.2,0.59911401]
[1642721235909,0.381,3024.3,3024.2,0.60025086]
[1642721236312,2.081,3024.3,3024.2,0.55025086]
[1642721236511,4.43964297,3024.3,3022.9,0.1322]
[1642721236714,0.82712,3023.9,3022.6,0.18520708]
[1642721236912,2.95,3024.2,3023.0,0.00682108]
[1642721236913,2.93809342,3023.8,3023.0,0.00682108]
[1642721237117,0.381,3023.7,3023.0,0.00682108]
[1642721237311,1.09256271,3023.2,3023.0,0.00682108]
[1642721237710,1.09256271,3023.2,3022.1,0.847093]
[1642721237911,1.09256271,3023.2,3022.2,18.95]
[1642721238149,1.09256271,3023.2,3022.2,0.01136847]
[1642721238350,1.09256271,3023.2,3022.1,0.85918427]
[1642721238351,1.09256271,3023.2,3022.3,0.01080005]
[1642721238551,1.09256271,3023.2,3022.2,0.01136847]
[1642721239051,2.29701609,3023.1,3022.2,0.01136847]
[1642721239255,3.50525609,3023.1,3021.8,0.01364216]
[1642721239455,3.50525609,3023.1,3022.1,0.01193689]
[1642721239760,1.31380374,3022.6,3021.7,0.01421059]
[1642721240156,0.82742,3022.5,3021.7,0.01421059]
[1642721240858,1.69480374,3022.6,3021.6,0.84715457]
[1642721241155,0.00454739,3022.5,3021.6,0.84715457]
[1642721241556,1.69480374,3022.6,3021.6,0.84715457]
[1642721241557,0.00397897,3022.4,3021.6,0.84715457]
[1642721242005,0.00341054,3022.3,3021.6,0.84715457]
[1642721242212,0.00341054,3022.3,3021.5,0.1323]
[1642721242414,0.38384212,3022.2,3021.0,0.1323]
[1642721242811,0.82766,3022.0,3021.1,0.00341054]
[1642721243011,0.82785,3021.7,3021.1,0.00341054]
[1642721243210,1.29158042,3021.3,3021.1,0.00341054]
[1642721243813,2.881,3021.2,3021.1,0.00341054]
[1642721244011,0.381,3021.2,3021.1,0.00341054]
[1642721244211,0.381,3021.2,3019.8,7.39]
[1642721244212,0.381,3021.2,3021.0,1.01196652]
[1642721246054,0.381,3021.2,3020.2,0.1323]
[1642721246452,0.381,3021.2,3020.3,0.00795792]
[1642721246657,0.82775,3021.8,3020.4,0.1323]
[1642721246658,0.381,3021.8,3020.4,0.1323]
[1642721246859,3.7447,3022.6,3020.7,3.15]
[1642721246860,0.33213685,3022.5,3020.7,3.15]
[1642721247056,0.33213685,3022.5,3020.6,0.01257846]
[1642721247057,3.7447,3022.6,3020.9,18.95]
[1642721247259,3.433,3022.7,3021.0,0.1126446]
[1642721247260,0.00170527,3022.2,3021.0,0.1126446]
[1642721247458,0.00170527,3022.2,3021.2,0.1085502]
[1642721247664,0.00113685,3022.1,3021.2,19.0585502]
[1642721247859,0.00113685,3022.1,3021.4,0.01231106]
[1642721248059,0.89259877,3022.7,3021.4,0.01231106]
[1642721248258,0.89259877,3022.7,3021.3,18.8344385]
[1642721248458,0.00397897,3022.6,3021.1,1.786982]
[1642721248659,0.00625266,3022.6,3021.1,1.786982]
[1642721248858,0.00568423,3022.5,3021.2,0.00170527]
[1642721249159,0.00511581,3022.4,3021.3,0.8431859]
[1642721249436,0.00511581,3022.4,3021.4,0.8273319]
[1642721249637,0.00454738,3022.3,3021.5,0.1323]
[1642721249837,0.00454738,3022.3,3021.6,0.10588224]
[1642721250036,0.00397896,3022.2,3021.7,0.1323]
[1642721250241,0.00397896,3022.2,3021.5,1.6544569]
[1642721250435,0.00341054,3022.1,3021.3,0.1323]
[1642721250637,0.00341054,3022.1,3021.2,0.00170527]
[1642721250837,0.00284211,3022.0,3021.2,0.00170527]
[1642721251237,0.00227369,3021.9,3021.4,1.6544754]
[1642721251437,7.369e-05,3021.9,3021.5,0.25659031]
[1642721251641,3.3918,3024.0,3021.7,0.16691485]
[1642721251842,5.1151,3024.3,3022.3,0.01296639]
[1642721251843,1.1578,3024.3,3022.3,0.01296639]
[1642721252040,7.5999,3024.9,3022.5,18.95]
[1642721252041,1.581e-05,3022.7,3022.5,18.95]
[1642721252239,7.1767,3024.9,3022.7,19.08051432]
[1642721252438,1.32002721,3024.3,3022.7,19.08051432]
[1642721252637,0.92884703,3023.3,3022.7,19.4502058]
[1642721252843,0.92884703,3023.3,3022.9,0.91463917]
[1642721253055,0.00284212,3023.2,3022.5,0.1323]
[1642721253454,0.92884703,3023.3,3022.5,0.1323]
[1642721253455,0.00227369,3023.1,3022.5,0.1323]
[1642721253859,2.29547129,3023.3,3022.5,0.1323]
[1642721253860,0.97854427,3022.6,3022.5,0.1323]
[1642721254260,0.97854427,3022.6,3022.5,0.13343685]
[1642721254459,0.00284212,3023.2,3022.5,3.28343685]
[1642721254669,0.00284212,3023.2,3022.6,0.0854259]
[1642721254863,0.00227369,3023.1,3022.5,3.58343685]
[1642721255264,0.00170527,3023.0,3022.5,3.58343685]
[1642721255666,0.96124043,3022.9,3022.5,3.58343685]
[1642721255866,0.96124043,3022.9,3022.6,0.0949494]
[1642721256068,0.96010358,3022.9,3022.6,0.0949494]
[1642721256268,0.96010358,3022.9,3022.5,3.45113685]
[1642721257306,0.00284212,3023.2,3022.5,3.45113685]
[1642721257508,0.00284212,3023.2,3022.7,0.1223648]
[1642721257708,0.00227369,3023.1,3022.5,3.15113685]
[1642721258116,0.00170527,3023.0,3022.5,3.15113685]
[1642721258512,0.00113685,3022.9,3022.5,3.15113685]
[1642721258813,0.97193997,3023.3,3022.5,22.92809245]
[1642721259015,0.00625266,3023.8,3022.6,0.10654077]
[1642721259212,0.00284212,3023.2,3022.6,0.10654077]
[1642721259412,0.00568423,3023.7,3022.5,22.47082833]
[1642721259612,0.00227369,3023.1,3022.5,0.37082833]
[1642721259812,0.00511581,3023.6,3022.5,0.37082833]
[1642721260013,0.00170527,3023.0,3022.6,18.95]
[1642721260215,0.00454739,3023.5,3022.6,18.95]
[1642721260415,0.00113685,3022.9,3022.8,0.8268899]
[1642721260671,0.00397896,3023.4,3022.8,1.1268899]
[1642721260869,1.12691198,3023.6,3022.8,1.1268899]
[1642721260870,0.00113685,3022.9,3022.8,1.1268899]
[1642721261068,1.12691198,3023.6,3022.8,1.1268899]
[1642721261069,0.00341054,3023.3,3022.8,1.1268899]
[1642721261270,0.00113685,3022.9,3022.8,1.1268899]
[1642721261470,0.00284212,3023.2,3022.8,1.1268899]
[1642721261671,0.00113685,3022.9,3022.8,1.1268899]
[1642721261870,0.00227369,3023.1,3022.8,1.1268899]
[1642721262070,3.685e-05,3022.9,3022.8,1.1268899]
[1642721262273,0.82686,3024.5,3022.8,1.19657933]
[1642721262476,5.11581,3024.9,3023.3,0.8266805]
[1642721262477,2.0,3024.9,3023.3,0.8266805]
[1642721262678,1.5923,3025.3,3023.4,0.09883162]
[1642721262679,4.212e-05,3023.5,3023.4,0.09883162]
[1642721262873,3.2113,3025.3,3023.6,18.95]
[1642721262874,2.0,3025.2,3023.6,18.95]
[1642721263073,2.0,3025.5,3023.7,0.11667293]
[1642721263276,1.0885141,3024.1,3023.7,0.11667293]
[1642721263474,1.53749508,3025.0,3023.7,0.11667293]
[1642721263672,0.00284211,3024.0,3023.7,0.11667293]
[1642721263971,0.00227369,3023.9,3023.8,0.8265727]
[1642721264176,0.00227369,3023.9,3023.7,2.4797253]
[1642721264610,0.00170527,3023.8,3023.7,2.4797253]
[1642721265010,0.00170527,3023.8,3023.7,2.4797531]
[1642721265011,5.27e-06,3023.8,3023.7,2.4797531]
[1642721265312,5.27e-06,3023.8,3023.7,2.55170569]
[1642721265511,2.0,3025.3,3023.7,22.63390569]
[1642721265710,0.8266,3025.4,3023.7,22.63391096]
[1642721266014,1.15221554,3024.4,3023.8,0.0017]
[1642721266209,0.00682635,3025.3,3024.3,18.95]
[1642721266410,3.9964,3026.9,3024.3,18.95]
[1642721266411,1.69476105,3025.7,3024.3,18.95]
[1642721266609,0.0125274,3025.6,3024.0,2.4795252]
[1642721266810,0.00682635,3025.3,3024.0,1.6530352]
[1642721267213,0.00625793,3025.2,3024.0,1.6530352]
[1642721267412,0.00625793,3025.2,3024.1,18.95]
[1642721267613,0.0056895,3025.1,3024.1,18.95]
[1642721267814,0.0056895,3025.1,3024.3,5.0]
[1642721268054,0.82649,3025.6,3024.4,18.95]
[1642721268055,1.14799252,3024.6,3024.4,18.95]
[1642721268461,0.00227896,3024.5,3024.4,18.95]
[1642721268862,0.89999173,3024.6,3024.5,22.1]
[1642721269065,1.29553768,3025.8,3024.5,22.1]
[1642721269263,0.00220124,3025.8,3024.5,22.1]
[1642721269463,0.00568424,3025.5,3024.5,22.1]
[1642721269862,0.00511581,3025.4,3024.5,22.1]
[1642721270263,0.00454739,3025.3,3024.5,22.1]
[1642721270662,1.07690927,3024.6,3024.5,22.1]
[1642721270864,0.00397897,3025.2,3024.7,19.04572008]
[1642721271064,0.00682108,3025.7,3024.7,19.04572008]
[1642721271272,0.00341054,3025.1,3024.7,18.95]
[1642721271465,0.00625266,3025.6,3024.7,18.95]
[1642721271669,0.00284212,3025.0,3024.7,18.95]
[1642721271914,1.12969504,3024.9,3024.7,18.95]
[1642721272111,0.97315229,3025.8,3024.7,18.95]
[1642721272512,0.97826811,3025.8,3024.8,0.07851873]
[1642721272718,0.97826811,3025.8,3024.7,18.95]
[1642721272913,0.97826811,3025.8,3024.8,0.8263547]
[1642721273513,0.97826811,3025.8,3024.9,0.09225861]
[1642721273714,0.97826811,3025.8,3024.7,20.602636]
[1642721273919,0.97826811,3025.8,3025.1,0.8262958]
[1642721274115,0.00511582,3025.8,3025.2,0.08955968]
[1642721274314,0.00511582,3025.8,3025.1,0.8262958]
[1642721274315,0.87962946,3025.7,3025.1,0.8262958]
[1642721274519,0.87962946,3025.7,3025.3,0.10138311]
[1642721274714,0.00397897,3025.6,3025.2,18.95]
[1642721275113,0.00341055,3025.5,3025.3,5.0]
[1642721275318,0.00341055,3025.5,3025.4,18.95]
[1642721275550,0.87962946,3025.7,3025.4,18.95]
[1642721275753,0.87962946,3025.7,3025.5,0.07907614]
[1642721275951,0.87962946,3025.7,3025.4,18.95]
[1642721275952,0.00397897,3025.6,3025.4,18.95]
[1642721276350,0.00341055,3025.5,3025.4,18.95]
[1642721276558,0.00341055,3025.5,3025.2,1.6522619]
[1642721276755,0.00341055,3025.5,3025.1,19.01952663]
[1642721276953,0.00284212,3025.4,3025.1,19.01952663]
[1642721277357,0.95936815,3025.2,3025.1,19.01952663]
[1642721277556,0.0022737,3025.3,3025.1,19.01952663]
[1642721277761,0.00170528,3025.2,3025.1,19.01952663]
[1642721278361,0.00170528,3025.2,3024.9,1.7846887]
[1642721278362,0.00170528,3025.2,3024.9,0.1322]
[1642721278563,1.09539199,3025.1,3024.9,0.1322]
[1642721278761,1.09539199,3025.1,3024.6,3.0]
[1642721278762,1.09652884,3025.1,3024.6,3.0]
[1642721279164,1.09652884,3025.1,3024.7,0.00113684]
[1642721279611,0.8266,3025.0,3024.7,0.00113684]
[1642721280008,1.32099585,3024.9,3024.7,0.00113684]
[1642721282411,4.96418371,3024.8,3024.7,0.00113684]
[1642721282611,5.02667731,3024.8,3024.7,0.00113684]
[1642721282810,5.40767731,3024.8,3024.7,0.00113684]
[1642721283102,1.65404,3023.9,3022.8,0.1322]
[1642721283299,1.3713949,3023.8,3022.8,0.1322]
[1642721283497,1.3713949,3023.8,3022.9,0.01023162]
[1642721283796,1.65403,3024.0,3022.2,0.01421059]
[1642721283996,2.52775368,3024.1,3022.2,0.01421059]
[1642721284195,3.20486335,3024.1,3022.2,0.01421059]
[1642721284401,0.827,3023.7,3022.2,18.95]
[1642721284595,0.827,3023.7,3022.2,18.96421059]
[1642721284596,0.82702,3023.6,3022.2,18.96421059]
[1642721284796,0.82702,3023.6,3023.1,1.08643745]
[1642721284996,0.827,3023.7,3023.1,1.08643745]
[1642721285199,0.827,3023.7,3023.2,0.00852635]
[1642721285397,1.24661811,3023.8,3023.2,0.00852635]
[1642721285895,0.82694,3023.9,3023.6,0.91327452]
[1642721286097,2.480657,3025.7,3023.6,0.91327452]
[1642721286098,1.2021,3024.7,3023.6,0.91327452]
[1642721286300,1.15503685,3025.1,3023.7,0.00568424]
[1642721286496,0.00113685,3025.1,3023.7,0.10607476]
[1642721286697,0.00170527,3025.0,3023.7,0.00568424]
[1642721286916,0.00170527,3025.0,3023.6,0.91327452]
[1642721286917,0.00170527,3025.0,3023.8,0.00511581]
[1642721287109,0.00170527,3025.0,3023.7,0.00568424]
[1642721287110,0.00113684,3024.9,3023.7,0.00568424]
[1642721287614,0.00113684,3024.9,3023.1,0.00909478]
[1642721287816,0.00113684,3024.9,3023.5,18.95]
[1642721288018,0.00113684,3024.9,3023.8,0.06952663]
[1642721288511,0.00113684,3024.9,3023.9,0.00454739]
[1642721288917,0.00113684,3024.9,3024.2,0.98995264]
[1642721289318,0.00113684,3024.9,3024.3,0.0022737]
[1642721289718,0.00113684,3024.9,3024.3,0.8287986]
[1642721289920,0.00113684,3024.9,3024.5,0.12316432]
[1642721290580,3.684e-05,3024.9,3024.5,0.12316432]
[1642721290777,3.684e-05,3024.9,3024.6,0.00166843]
[1642721291186,0.01225905,3026.0,3024.8,22.1]
[1642721291384,0.01225905,3026.0,3024.9,0.46812614]
[1642721291584,0.88991746,3025.7,3024.9,0.53765277]
[1642721292088,0.00397897,3025.6,3025.0,19.01952663]
[1642721292284,7.897e-05,3025.6,3025.2,18.95]
[1642721292489,0.00220124,3026.3,3025.3,6.0092]
[1642721292684,0.00220124,3026.8,3025.5,5.0]
[1642721292884,0.00341054,3026.2,3025.6,18.95]
[1642721293092,1.054e-05,3026.2,3025.7,0.46560454]
[1642721293285,4.212e-05,3026.1,3025.8,19.03669359]
[1642721293584,2.0,3027.2,3026.2,0.08327187]
[1642721293585,0.00220124,3027.2,3026.2,0.08327187]
[1642721293782,0.00220124,3027.2,3026.3,0.08431788]
[1642721293982,0.00220124,3027.2,3026.3,0.08658104]
[1642721294184,9.971e-05,3026.6,3026.4,0.10522178]
[1642721294432,0.01202982,3027.0,3026.6,1.0966349]
[1642721294638,9.454e-05,3026.8,3026.6,2.02775628]
[1642721294828,2.982e-05,3027.0,3026.7,18.95]
[1642721294829,4.738e-05,3026.9,3026.7,18.95]
[1642721295029,4.738e-05,3026.9,3026.7,19.33208946]
[1642721295228,4.738e-05,3026.9,3026.7,20.15778946]
[1642721295628,4.738e-05,3026.9,3026.8,18.95]
[1642721295830,4.738e-05,3026.9,3026.8,19.36676403]
[1642721296029,4.738e-05,3026.9,3026.8,19.331]
[1642721296231,0.94023839,3027.3,3026.9,3.9756]
[1642721296428,0.94023839,3027.3,3027.0,0.95772]
[1642721296429,5.691e-05,3027.3,3027.0,0.95772]
[1642721296628,3.685e-05,3027.1,3027.0,19.90772]
[1642721296829,3.685e-05,3027.1,3027.0,21.55893]
[1642721297028,3.685e-05,3027.1,3027.0,22.3844866]
[1642721297428,0.97602737,3027.1,3027.0,22.2523866]
[1642721298057,0.97599052,3027.1,3027.0,22.2523866]
[1642721298260,0.00220124,3027.9,3027.0,22.2523866]
[1642721298662,0.00397897,3027.8,3027.3,18.95]
[1642721298861,0.00397897,3027.8,3027.3,22.2520504]
[1642721299061,0.00341054,3027.7,3027.3,22.2520504]
[1642721299264,0.00341054,3027.7,3027.4,18.95]
[1642721299464,0.00284212,3027.6,3027.4,18.95]
[1642721299867,0.00227369,3027.5,3027.4,18.95]
[1642721300066,0.00227369,3027.5,3027.4,19.77552]
[1642721300665,0.00227369,3027.5,3027.0,0.1321]
[1642721300864,0.00227369,3027.5,3026.7,18.95108946]
[1642721301064,1.08443824,3027.8,3026.9,0.8258173]
[1642721301065,0.00170527,3027.4,3026.9,0.8258173]
[1642721301265,0.00170527,3027.4,3026.9,0.00113685]
[1642721301467,0.00113685,3027.3,3026.9,0.00113685]
[1642721301664,0.00113685,3027.3,3026.7,0.00227369]
[1642721301665,1.15163117,3027.0,3026.7,0.00227369]
[1642721301910,0.00561178,3027.7,3026.8,3.15170527]
[1642721302116,0.00341054,3027.7,3027.0,0.8257232]
[1642721302315,0.82558,3029.3,3027.2,0.96870101]
[1642721302316,4.212e-05,3027.6,3027.2,0.96870101]
[1642721302517,4.212e-05,3027.6,3027.4,0.13193084]
[1642721302712,0.00220124,3028.9,3027.5,0.82554]
[1642721302910,0.00220124,3028.9,3027.5,0.82946631]
[1642721303112,3.38516444,3029.1,3027.7,3.15]
[1642721303308,3.38516444,3029.1,3027.8,0.08107679]
[1642721303309,0.00220534,3029.0,3027.8,0.08107679]
[1642721303512,1.34582479,3028.8,3027.8,0.00568423]
[1642721303711,1.34582479,3028.8,3027.9,0.00511581]
[1642721303712,0.92200838,3028.7,3027.9,0.00511581]
[1642721304013,0.92200838,3028.7,3027.1,1.02706224]
[1642721304014,0.92200838,3028.7,3027.5,0.00738951]
[1642721304212,0.00220534,3028.6,3027.5,0.00738951]
[1642721304410,0.00220534,3028.6,3027.2,0.00909478]
[1642721304609,3.38516444,3029.1,3027.3,3.0]
[1642721304610,2.05361578,3029.1,3027.3,3.0]
[1642721304812,3.70484578,3029.1,3027.5,0.8256238]
[1642721305016,3.70484578,3029.1,3027.4,0.0217808]
[1642721305017,0.93606996,3027.5,3027.4,0.0217808]
[1642721305212,2.05361578,3029.1,3027.6,0.00795793]
[1642721305411,2.05361578,3029.1,3027.4,0.0217808]
[1642721305667,1.05361578,3029.1,3027.5,0.00852636]
[1642721305865,1.05361578,3029.1,3027.7,0.825576]
[1642721306068,1.05361578,3029.1,3027.5,0.00852636]
[1642721306069,0.82563,3029.0,3027.5,0.00852636]
[1642721306268,1.36460509,3028.8,3027.8,0.00682108]
[1642721306466,1.36460509,3028.8,3027.4,0.00909478]
[1642721306665,1.36460509,3028.8,3027.5,0.00852636]
[1642721306866,1.36460509,3028.8,3027.4,0.00909478]
[1642721307068,2.19025509,3028.8,3027.4,4.86961317]
[1642721307267,1.36460509,3028.8,3027.4,4.04398107]
[1642721307469,1.36460509,3028.8,3027.5,0.00852636]
[1642721307671,1.09093332,3027.8,3027.5,18.95852636]
[1642721307867,0.98711699,3027.8,3027.5,18.95852636]